fUST/lending_fUST_20241203
["ID","MTS","AMOUNT","RATE_DAILY","PERIOD"]
[344031307,1733231361153,-536.417506,0.00031023,7]
[344031308,1733231361175,-536.417498,0.00031023,7]
[344031309,1733231361196,-500.0,0.00031026,7]
[344031310,1733231361218,-500.0,0.00031026,7]
[344031311,1733231361238,-500.0,0.00031026,7]
[344031312,1733231361259,-181.69727335,0.00031026,7]
[344031313,1733231361279,-500.0,0.00031026,7]
[344031314,1733231361304,-500.0,0.00031026,7]
[344031315,1733231361325,-500.0,0.00031026,7]
[344031316,1733231361345,-500.0,0.00031026,7]
[344031317,1733231361367,-500.0,0.00031026,7]
[344031318,1733231361388,-500.0,0.00031026,7]
[344031319,1733231361409,-232.35887738,0.00031026,7]
[344031320,1733231361429,-500.0,0.00031026,7]
[344031321,1733231361450,-500.0,0.00031026,7]
[344031322,1733231361471,-504.14812093,0.00031026,7]
[344031323,1733231361492,-504.31357439,0.00031026,7]
[344031324,1733231361514,-500.0,0.00031026,7]
[344031325,1733231361538,-500.0,0.00031026,7]
[344031326,1733231361560,-500.0,0.00031026,7]
[344031327,1733231361582,-500.0,0.00031026,7]
[344031328,1733231361603,-500.6,0.00031026,7]
[344031329,1733231361625,-500.0,0.00031026,7]
[344031330,1733231361646,-276.3602245,0.00031026,7]
[344031331,1733231361667,-500.0,0.00031026,7]
[344031332,1733231361688,-505.33225486,0.00031026,7]
[344031333,1733231361709,-500.0,0.00031026,7]
[344031334,1733231361730,-500.0,0.00031026,7]
[344031335,1733231361751,-505.05324756,0.00031026,7]
[344031336,1733231361771,-501.71045778,0.00031026,7]
[344031337,1733231361794,-506.6003104,0.00031026,7]
[344031338,1733231361815,-482.05351485,0.00031026,7]
[344031339,1733231361835,-500.0,0.00031026,7]
[344031340,1733231361857,-565.55508715,0.00031026,7]
[344031341,1733231361881,-508.41419684,0.00031026,7]
[344031342,1733231361902,-500.0,0.00031026,7]
[344031343,1733231361923,-499.11787745,0.00031026,7]
[344031344,1733231361943,-502.98407879,0.00031026,7]
[344031345,1733231361966,-409.11355314,0.00031026,7]
[344031346,1733231361987,-500.0,0.00031026,7]
[344031347,1733231362009,-500.0,0.00031026,7]
[344031348,1733231362029,-500.0,0.00031026,7]
[344031349,1733231362052,-500.0,0.00031026,7]
[344031350,1733231362075,-236.62193595,0.00031026,7]
[344031351,1733231362098,-505.18643782,0.00031026,7]
[344031352,1733231362118,-500.0,0.00031026,7]
[344031353,1733231362139,-533.43760398,0.00031026,7]
[344031354,1733231362160,-503.85113335,0.00031026,7]
[344031355,1733231362181,-500.0,0.00031026,7]
[344031356,1733231362299,-500.0,0.00031026,7]
[344031357,1733231362321,-205.35497794,0.00031026,7]
[344031358,1733231362342,-163.48180846,0.00031037,10]
[344031359,1733231362363,-471.75501163,0.00031041,7]
[344031360,1733231362384,-500.0,0.00031041,7]
[344031361,1733231362405,-506.55555807,0.00031041,7]
[344031362,1733231362427,-500.0,0.00031041,7]
[344031363,1733231362449,-500.0,0.00031041,7]
[344031364,1733231362470,-500.0,0.00031041,7]
[344031365,1733231362491,-500.0,0.00031041,7]
[344031366,1733231362512,-503.45199157,0.00031041,7]
[344031367,1733231362534,-500.0,0.00031041,7]
[344031368,1733231362557,-500.0,0.00031041,7]
[344031369,1733231362578,-500.0,0.00031041,7]
[344031370,1733231362599,-500.0,0.00031041,7]
[344031371,1733231362621,-500.0,0.00031041,7]
[344031372,1733231362643,-500.0,0.00031041,7]
[344031373,1733231362665,-503.6224336,0.00031041,7]
[344031374,1733231362688,-874.47,0.00031177,7]
[344031375,1733231362711,-500.0,0.00031179,7]
[344031376,1733231362732,-500.0,0.00031179,7]
[344031377,1733231362755,-701.07,0.00031179,7]
[344031378,1733231362777,-500.0,0.0003126,7]
[344031379,1733231362800,-500.0,0.0003126,7]
[344031380,1733231362821,-500.0,0.0003126,7]
[344031381,1733231362842,-500.0,0.0003126,7]
[344031382,1733231362862,-329.78,0.0003126,7]
[344031383,1733231362884,-339.01,0.00031262,7]
[344031384,1733231362906,-500.0,0.00031262,7]
[344031385,1733231362926,-462.7,0.00031262,7]
[344031386,1733231362947,-167.15,0.00031262,7]
[344031387,1733231362971,-500.0,0.00031262,7]
[344031388,1733231362993,-500.0,0.00031262,7]
[344031389,1733231363016,-500.0,0.00031262,7]
[344031390,1733231363039,-500.0,0.00031262,7]
[344031391,1733231363061,-500.0,0.00031262,7]
[344031392,1733231363082,-500.0,0.00031262,7]
[344031393,1733231363108,-624.75,0.00031262,7]
[344031394,1733231363129,-501.92800475,0.000313,7]
[344031395,1733231363151,-637.54199632,0.000313,7]
[344031396,1733231363178,-505.49217052,0.000313,7]
[344031397,1733231363200,-500.0,0.000313,7]
[344031398,1733231363222,-502.5074371,0.000313,7]
[344031399,1733231363243,-509.86604775,0.000313,7]
[344031400,1733231363265,-501.46104911,0.000313,7]
[344031401,1733231363286,-406.62474428,0.000313,7]
[344031402,1733231363312,-504.51157849,0.00031315,7]
[344031403,1733231363334,-874.47,0.00031451,7]
[344031404,1733231363356,-419.10196107,0.00031453,7]
[344031405,1733231363378,-500.0,0.00031453,7]
[344031406,1733231363399,-701.07,0.00031453,7]
[344031407,1733231363420,-500.0,0.00031534,7]
[344031408,1733231363443,-500.0,0.00031534,7]
[344031409,1733231363464,-237.47,0.00031536,7]
[344031410,1733231363488,-500.0,0.00031536,7]
[344031411,1733231363510,-500.0,0.00031536,7]
[344031412,1733231363532,-277.67,0.00031536,7]
[344031413,1733231363559,-874.47,0.00031725,7]
[344031414,1733231363581,-500.0,0.00031727,7]
[344031415,1733231363603,-701.07,0.00031727,7]
[344031416,1733231363625,-500.0,0.00031808,7]
[344031417,1733231363648,-500.0,0.0003181,7]
[344031418,1733231363670,-247.87,0.0003181,7]
[344031419,1733231363692,-164.292318,0.00031921,2]
[344031420,1733231363714,-214.575587,0.00031921,2]
[344031421,1733231363736,-172.19257,0.00031921,2]
[344031422,1733231363758,-874.47,0.00031999,7]
[344031423,1733231363779,-500.0,0.00032001,7]
[344031424,1733231363803,-701.07,0.00032001,7]
[344031425,1733231363824,-500.0,0.00032082,7]
[344031426,1733231363845,-500.0,0.00032084,7]
[344031427,1733231363867,-874.47,0.00032273,7]
[344031428,1733231363887,-500.0,0.00032275,7]
[344031429,1733231363910,-701.07,0.00032275,7]
[344031430,1733231363930,-500.0,0.00032356,7]
[344031431,1733231363951,-500.0,0.00032358,7]
[344031432,1733231363977,-874.47,0.00032547,7]
[344031433,1733231363999,-500.0,0.00032549,7]
[344031434,1733231364020,-701.07,0.00032549,7]
[344031435,1733231364042,-220.43,0.0003263,7]
[344031436,1733231364063,-500.46,0.00032632,7]
[344031437,1733231364085,-874.47,0.00032821,7]
[344031438,1733231364106,-500.0,0.00032823,7]
[344031439,1733231364128,-701.07,0.00032823,7]
[344031440,1733231364149,-500.0,0.00032876,2]
[344031441,1733231364170,-233.84077091,0.00032876,2]
[344031442,1733231364191,-344.3633305,0.00032876,2]
[344031443,1733231364211,-277.01202112,0.00032876,2]
[344031444,1733231364232,-500.0,0.00032876,2]
[344031445,1733231364253,-269.72611251,0.00032876,2]
[344031446,1733231364274,-286.70936832,0.00032876,2]
[344031447,1733231364297,-361.86999879,0.00032876,2]
[344031448,1733231364318,-1000.0,0.00032876,120]
[344031449,1733231364434,-1049.72342606,0.00032876,120]
[344031450,1733231364459,-200.0,0.00032876,2]
[344031451,1733231364480,-500.0,0.00033,30]
[344031452,1733231364502,-500.0,0.00033,30]
[344031453,1733231364523,-969.88915,0.00033,30]
[344031454,1733231364548,-874.47,0.00033095,7]
[344031455,1733231364569,-500.0,0.00033097,7]
[344031456,1733231364592,-701.07,0.00033097,7]
[344031457,1733231364616,-874.47,0.00033369,7]
[344031458,1733231364638,-500.0,0.00033371,7]
[344031459,1733231364659,-701.07,0.00033371,7]
[344031460,1733231364680,-172.19257,0.00033517,2]
[344031461,1733231364701,-150.0,0.00033579,2]
[344031462,1733231364722,-625.076,0.00033579,2]
[344031463,1733231364743,-2125.0,0.00033579,2]
[344031464,1733231364764,-650.917,0.00033579,2]
[344031465,1733231364794,-874.47,0.00033643,7]
[344031466,1733231364815,-500.0,0.00033645,7]
[344031467,1733231364838,-701.07,0.00033645,7]
[344031468,1733231364860,-874.47,0.00033917,7]
[344031469,1733231364881,-500.0,0.00033919,7]
[344031470,1733231364903,-701.07,0.00033919,7]
[344031471,1733231364931,-874.47,0.00034191,7]
[344031472,1733231364952,-215.11186553,0.00034193,7]
[344031473,1733231364979,-701.07,0.00034193,7]
[344031474,1733231365003,-874.47,0.00034465,7]
[344031475,1733231365025,-701.07,0.00034467,7]
[344031476,1733231365050,-160.039933,0.00034475,2]
[344031477,1733231365072,-874.47,0.00034739,7]
[344031478,1733231365094,-701.07,0.00034741,7]
[344031479,1733231365116,-874.47,0.00035013,7]
[344031480,1733231365138,-701.07,0.00035015,7]
[344031481,1733231365160,-874.47,0.00035287,7]
[344031482,1733231365182,-701.2702,0.00035289,7]
[344031483,1733231365204,-874.47,0.00035561,7]
[344031484,1733231365225,-1000.0,0.00035616,120]
[344031485,1733231365247,-874.56248201,0.00035835,7]
[344031486,1733231365268,-730.90593362,0.0003589,120]
[344031487,1733231365363,-1169.27083333,0.00028987,7]
[344031488,1733231365382,-1169.27083333,0.00028987,7]
[344031489,1733231365402,-1169.27083333,0.00028987,7]
[344031490,1733231365422,-159.05036512,0.00029396,2]
[344031491,1733231365443,-500.0,0.00030985,2]
[344031492,1733231365463,-500.0,0.00030985,2]
[344031493,1733231365919,1169.27083333,0.00025337,2]
[344031494,1733231366566,159.05036512,0.00029905,2]
[344031495,1733231367887,2951.00642877,0.00031022,2]
[344031496,1733231372119,-159.05036512,0.00030414,2]
[344031497,1733231372144,-195.60511276,0.00030985,2]
[344031498,1733231372166,-1375.82659077,0.00031022,2]
[344031499,1733231372197,-8891.90645813,0.00031022,2]
[344031500,1733231384462,500.0,0.00028987,7]
[344031504,1733231410789,500.0,0.00028987,7]
[344031506,1733231424205,500.0,0.00028987,7]
[344031553,1733231438440,1169.27083333,0.00028987,7]
[344031563,1733231438778,-159.05036512,0.00030923,2]
[344031564,1733231438787,-500.0,0.00030988,7]
[344031565,1733231438797,-500.0,0.00030988,7]
[344031566,1733231438806,-267.43555061,0.00031022,2]
[344031567,1733231438816,-500.0,0.00031022,2]
[344031568,1733231438825,-500.0,0.00031022,2]
[344031569,1733231438835,-500.0,0.00031022,2]
[344031572,1733231438848,-500.0,0.00031022,2]
[344031574,1733231438857,-500.0,0.00031022,2]
[344031575,1733231438866,-500.0,0.00031022,2]
[344031576,1733231438875,-500.0,0.00031022,2]
[344031577,1733231438885,-250.0,0.00031022,2]
[344031578,1733231438894,-500.0,0.00031022,2]
[344031579,1733231438906,-250.0,0.00031022,2]
[344031580,1733231438917,-8578.97293384,0.00031022,2]
[344031581,1733231438926,-65896.03961639,0.00031023,2]
[344031582,1733231438935,-2000.0,0.00031023,2]
[344031583,1733231438943,-300.0,0.00031023,2]
[344031584,1733231438952,-799.39786413,0.00031023,2]
[344031585,1733231438961,-518.0122827,0.00031023,2]
[344031586,1733231438971,-293.09478223,0.00031023,2]
[344031587,1733231438980,-322.83038135,0.00031023,2]
[344031588,1733231438990,-1193.94775152,0.00031023,2]
[344031589,1733231439001,-288.11824499,0.00031023,2]
[344031590,1733231439010,-188.42007244,0.00031023,12]
[344031591,1733231439021,-51043.63426175,0.00031023,2]
[344031592,1733231439031,-4151.75330625,0.00031023,2]
[344031593,1733231439040,-10167.89431446,0.00031023,2]
[344031594,1733231439050,-6209.51700796,0.00031023,2]
[344031595,1733231439058,-155.46083974,0.00031023,2]
[344031596,1733231439069,-1692.22744654,0.00031023,2]
[344031597,1733231439079,-440.39237684,0.00031023,2]
[344031598,1733231439088,-1026.1001809,0.00031023,2]
[344031599,1733231439100,-154868.32112167,0.00031023,2]
[344031600,1733231439110,-9042.16628413,0.00031023,2]
[344031601,1733231439119,-461.99098667,0.00031023,2]
[344031602,1733231439128,-244.20226703,0.00031023,2]
[344031603,1733231439137,-498.0,0.00031023,7]
[344031604,1733231439147,-186.96451649,0.00031023,2]
[344031605,1733231439156,-299.35827358,0.00031023,2]
[344031606,1733231439166,-5816.69547692,0.00031023,2]
[344031607,1733231439175,-23105.81136734,0.00031023,5]
[344031608,1733231439184,-15649.28901403,0.00031023,2]
[344031609,1733231439194,-560843.57380967,0.00031023,10]
[344031610,1733231439428,-198477.85226998,0.00031023,10]
[344031611,1733231439811,434.78116667,0.00028987,7]
[344031618,1733231440636,-734.48966666,0.00028987,7]
[344031619,1733231440648,-1169.27083333,0.00028987,7]
[344031620,1733231440661,-475.24209913,0.00028987,7]
[344031621,1733231440672,-252145.46478634,0.00031023,10]
[344031657,1733231445529,1169.27083333,0.00025337,2]
[344031668,1733231446628,-13600.64024,0.00031023,10]
[344031669,1733231446907,-458.72527499,0.00031023,10]
[344031670,1733231522968,545.72916667,0.00025337,2]
[344031672,1733231572258,3426.2477523,0.00025,2]
[344031675,1733231905408,160.039933,0.00013973,2]
[344031676,1733232090218,-1169.27083333,0.00025225,2]
[344031677,1733232090241,-216.0,0.00027,2]
[344031678,1733232090262,-216.0,0.00027671,2]
[344031682,1733232159548,1169.27083333,0.00025262,2]
[344031691,1733232283089,3232.14871667,0.00028,2]
[344031693,1733232342126,-216.0,0.00028767,2]
[344031694,1733232342151,-186.55751352,0.00028886,2]
[344031695,1733232342173,-500.0,0.00028973,5]
[344031696,1733232342195,-300.0,0.00028985,2]
[344031697,1733232342218,-300.0,0.00028985,2]
[344031698,1733232342240,-282.04385543,0.00028986,2]
[344031699,1733232342263,-500.0,0.00028986,7]
[344031700,1733232342381,-285.82551538,0.00028986,7]
[344031701,1733232342409,-500.0,0.00028986,7]
[344031702,1733232342433,-88.93005629,0.00028986,7]
[344031703,1733232426105,-270.1937487,0.00028985,7]
[344031704,1733232426127,-500.0,0.00028985,7]
[344031705,1733232426148,-300.0,0.00028985,2]
[344031706,1733232426172,-300.0,0.00028985,2]
[344031707,1733232426195,-411.06994371,0.00028986,7]
[344031708,1733232426220,-500.0,0.00028986,7]
[344031709,1733232426242,-500.0,0.00028986,7]
[344031710,1733232426265,-251.58489536,0.00028986,7]
[344031718,1733232441284,-227.79217147,0.00028886,2]
[344031719,1733232441319,-248.41510464,0.00028986,7]
[344031720,1733232441343,-500.0,0.00028986,7]
[344031721,1733232441366,-481.45912359,0.00028986,7]
[344031722,1733232444109,-18.54087641,0.00028986,7]
[344031723,1733232444132,-500.0,0.00028986,7]
[344031724,1733232444154,-500.0,0.00028986,7]
[344031725,1733232444176,-500.0,0.00028986,7]
[344031726,1733232444198,-500.0,0.00028986,7]
[344031727,1733232444219,-500.0,0.00028986,7]
[344031728,1733232444243,-500.0,0.00028986,7]
[344031729,1733232444263,-308.92605143,0.00028986,7]
[344031730,1733232444284,-46.53036477,0.00028986,7]
[344031786,1733232553214,-500.0,0.000282,3]
[344031787,1733232553235,-500.0,0.000282,5]
[344031788,1733232553255,-500.0,0.000285,2]
[344031789,1733232553278,-500.0,0.00028985,7]
[344031790,1733232553300,-500.0,0.00028985,7]
[344031791,1733232553328,-300.0,0.00028985,2]
[344031792,1733232553349,-300.0,0.00028985,2]
[344031793,1733232553374,-526.51058598,0.00028986,7]
[344031794,1733232553394,-526.0071309,0.00028986,7]
[344031795,1733232553417,-500.0,0.00028986,7]
[344031796,1733232553437,-500.0,0.00028986,7]
[344031797,1733232553457,-500.0,0.00028986,7]
[344031798,1733232553477,-500.0,0.00028986,7]
[344031799,1733232553498,-500.0,0.00028986,7]
[344031800,1733232553519,-500.0,0.00028986,7]
[344031801,1733232553540,-500.0,0.00028986,7]
[344031802,1733232553561,-500.0,0.00028986,7]
[344031803,1733232553581,-500.0,0.00028986,7]
[344031804,1733232553600,-500.0,0.00028986,7]
[344031805,1733232553623,-500.0,0.00028986,7]
[344031806,1733232553642,-521.51112697,0.00028986,7]
[344031807,1733232553662,-500.0,0.00028986,7]
[344031808,1733232553682,-500.0,0.00028986,7]
[344031809,1733232553784,-537.5053728,0.00028986,7]
[344031810,1733232553804,-500.0,0.00028986,7]
[344031811,1733232553824,-418.90066132,0.00028986,7]
[344031812,1733232553844,-500.0,0.00028986,7]
[344031813,1733232553870,-500.0,0.00028986,7]
[344031814,1733232553892,-634.56,0.00028986,7]
[344031815,1733232553913,-500.0,0.00028986,7]
[344031816,1733232553934,-500.0,0.00028986,7]
[344031817,1733232553955,-500.0,0.00028986,7]
[344031818,1733232553976,-503.28306023,0.00028986,7]
[344031819,1733232553996,-595.43,0.00028986,7]
[344031820,1733232554016,-200.0,0.00028986,7]
[344031821,1733232554036,-500.0,0.00028986,7]
[344031822,1733232554056,-500.0,0.00028986,7]
[344031823,1733232554076,-504.3933728,0.00028986,7]
[344031824,1733232554097,-504.32056931,0.00028986,7]
[344031825,1733232554122,-500.0,0.00028986,7]
[344031826,1733232554143,-500.0,0.00028986,7]
[344031827,1733232554166,-505.79056327,0.00028986,7]
[344031828,1733232554195,-500.0,0.00028986,7]
[344031829,1733232554216,-1169.27083333,0.00028986,7]
[344031830,1733232554237,-1169.27083333,0.00028986,7]
[344031831,1733232554258,-1169.27083333,0.00028986,7]
[344031832,1733232554279,-500.0,0.00028986,7]
[344031833,1733232554299,-540.36,0.00028986,7]
[344031834,1733232554320,-500.0,0.00028986,7]
[344031835,1733232554344,-500.0,0.00028986,7]
[344031836,1733232554368,-500.0,0.00028986,7]
[344031837,1733232554388,-500.0,0.00028986,7]
[344031838,1733232554410,-500.0,0.00028986,7]
[344031839,1733232554430,-173.91238353,0.00028986,7]
[344031840,1733232554451,-500.0,0.00028986,7]
[344031841,1733232554471,-500.0,0.00028986,7]
[344031842,1733232554491,-500.0,0.00028986,7]
[344031843,1733232554510,-168.0,0.00028986,7]
[344031844,1733232554530,-500.0,0.00028986,7]
[344031845,1733232554550,-500.0,0.00028986,7]
[344031846,1733232554571,-500.0,0.00028986,7]
[344031847,1733232554592,-500.0,0.00028986,7]
[344031848,1733232554614,-259.87849515,0.00028986,7]
[344031849,1733232554634,-500.086633,0.00028986,7]
[344031850,1733232554653,-500.0,0.00028986,7]
[344031851,1733232554673,-500.0,0.00028986,7]
[344031852,1733232554693,-500.0,0.00028986,7]
[344031853,1733232554713,-573.91742598,0.00028986,7]
[344031854,1733232554734,-500.0,0.00028986,7]
[344031855,1733232554754,-500.0,0.00028986,7]
[344031856,1733232554774,-500.0,0.00028986,7]
[344031857,1733232554794,-500.0,0.00028986,7]
[344031858,1733232554814,-500.0,0.00028986,7]
[344031859,1733232554836,-500.0,0.00028986,7]
[344031860,1733232554860,-500.0,0.00028986,7]
[344031861,1733232554882,-500.0,0.00028986,7]
[344031862,1733232554904,-505.15,0.00028986,7]
[344031863,1733232554925,-176.48422983,0.00028986,7]
[344031864,1733232554947,-500.0,0.00028986,7]
[344031865,1733232554968,-500.0,0.00028986,7]
[344031866,1733232554990,-500.0,0.00028986,7]
[344031867,1733232555012,-500.0,0.00028986,7]
[344031868,1733232555033,-647.48,0.00028986,7]
[344031869,1733232555054,-500.0,0.00028986,7]
[344031870,1733232555075,-392.80455624,0.00028986,7]
[344031871,1733232555095,-503.76591515,0.00028986,7]
[344031872,1733232555118,-500.0,0.00028987,7]
[344031873,1733232555139,-500.0,0.00028987,7]
[344031874,1733232555159,-500.0,0.00028987,7]
[344031875,1733232555179,-580.90788344,0.00028987,7]
[344031876,1733232555200,-500.0,0.00028987,7]
[344031877,1733232555220,-500.0,0.00028987,7]
[344031878,1733232555241,-500.0,0.00028987,7]
[344031879,1733232555261,-500.0,0.00028987,7]
[344031880,1733232555281,-500.0,0.00028987,7]
[344031881,1733232555301,-500.0,0.00028987,7]
[344031882,1733232555325,-460.75313678,0.00028987,7]
[344031883,1733232555346,-500.0,0.00028987,7]
[344031884,1733232555370,-440.50169333,0.00028987,7]
[344031885,1733232555391,-500.0,0.00028987,7]
[344031886,1733232555415,-500.0,0.00028987,7]
[344031887,1733232555438,-580.92,0.00028987,7]
[344031888,1733232555459,-500.0,0.00028987,7]
[344031889,1733232555479,-202.65848385,0.00028987,7]
[344031890,1733232555500,-502.91432481,0.00028987,7]
[344031891,1733232555520,-300.61595275,0.00028987,7]
[344031892,1733232555541,-500.0,0.00028987,7]
[344031893,1733232555564,-500.0,0.00028987,7]
[344031894,1733232555590,-500.0,0.00028987,7]
[344031895,1733232555615,-500.0,0.00028987,7]
[344031896,1733232555642,-500.0,0.00028987,7]
[344031897,1733232555666,-519.76518526,0.00028987,7]
[344031898,1733232555688,-500.0,0.00028987,7]
[344031899,1733232555709,-500.0,0.00028987,7]
[344031900,1733232555729,-500.0,0.00028987,7]
[344031901,1733232555749,-576.16821352,0.00028987,7]
[344031902,1733232555769,-500.0,0.00028987,7]
[344031903,1733232555790,-500.0,0.00028987,7]
[344031904,1733232555812,-604.66696486,0.00028987,7]
[344031905,1733232555832,-500.0,0.00028987,7]
[344031906,1733232555854,-514.69227699,0.00028987,7]
[344031907,1733232555877,-507.70273983,0.00028987,7]
[344031908,1733232555897,-500.0,0.00028987,7]
[344031909,1733232555918,-500.0,0.00028987,7]
[344031910,1733232555939,-500.0,0.00028987,7]
[344031911,1733232555959,-500.0,0.00028987,7]
[344031912,1733232555979,-500.0,0.00028987,7]
[344031913,1733232556001,-500.0,0.00028987,7]
[344031914,1733232556022,-500.0,0.00028987,7]
[344031915,1733232556125,-500.0,0.00028988,7]
[344031916,1733232556156,-500.0,0.00028988,7]
[344031917,1733232556194,-500.0,0.00028988,7]
[344031918,1733232556215,-333.488,0.00029,120]
[344031919,1733232556236,-227.79217145,0.00029176,2]
[344031920,1733232556257,-500.0,0.00029259,7]
[344031921,1733232556279,-500.0,0.00029259,7]
[344031922,1733232556300,-500.0,0.00029259,7]
[344031923,1733232556320,-500.0,0.0002926,7]
[344031924,1733232556344,-422.58,0.0002926,7]
[344031925,1733232556368,-425.29220359,0.0002926,7]
[344031926,1733232556389,-500.0,0.0002926,7]
[344031927,1733232556410,-288.09,0.0002926,7]
[344031928,1733232556430,-500.0,0.0002926,7]
[344031929,1733232556451,-500.0,0.0002926,7]
[344031930,1733232556472,-510.89,0.0002926,7]
[344031931,1733232556493,-534.77,0.0002926,7]
[344031932,1733232556514,-500.0,0.0002926,7]
[344031933,1733232556536,-500.0,0.0002926,7]
[344031934,1733232556556,-500.0,0.0002926,7]
[344031935,1733232556577,-500.0,0.0002926,7]
[344031936,1733232556597,-181.42,0.0002926,7]
[344031937,1733232556619,-473.51577017,0.0002926,7]
[344031938,1733232556638,-380.09,0.0002926,7]
[344031939,1733232556657,-505.15,0.0002926,7]
[344031940,1733232556677,-500.0,0.00029261,7]
[344031941,1733232556697,-242.88,0.00029261,7]
[344031942,1733232556717,-618.80173635,0.00029261,7]
[344031943,1733232556737,-500.0,0.00029261,7]
[344031944,1733232556758,-177.36381581,0.00029261,7]
[344031945,1733232556780,-227.79217145,0.00029466,2]
[344031946,1733232556802,-500.0,0.00029533,7]
[344031947,1733232556825,-500.0,0.00029533,7]
[344031948,1733232556847,-500.0,0.00029533,7]
[344031949,1733232556869,-500.0,0.00029534,7]
[344031950,1733232556889,-223.18403978,0.00029534,7]
[344031951,1733232556912,-500.0,0.00029534,7]
[344031952,1733232556933,-67.31588616,0.00029534,7]
[344031953,1733232564204,-500.0,0.00028986,7]
[344031954,1733232564227,-437.83411384,0.00029534,7]
[344031955,1733232564248,-639.088,0.00029535,7]
[344031956,1733232564269,-500.0,0.00029535,7]
[344031957,1733232564290,-227.79217145,0.00029756,2]
[344031958,1733232564312,-1169.27083333,0.00029781,2]
[344031959,1733232564336,-500.0,0.00029807,7]
[344031960,1733232564358,-500.0,0.00029807,7]
[344031961,1733232564384,-500.0,0.00029807,7]
[344031962,1733232564406,-500.0,0.00029808,7]
[344031963,1733232564427,-500.0,0.00029808,7]
[344031964,1733232564450,-505.15,0.00029808,7]
[344031965,1733232564471,-509.50204168,0.00029809,7]
[344031966,1733232564493,-151.0,0.0003,120]
[344031967,1733232564514,-227.79217145,0.00030045,2]
[344031968,1733232564536,-500.0,0.00030081,7]
[344031969,1733232564558,-451.99,0.00030081,7]
[344031970,1733232564580,-500.0,0.00030081,7]
[344031971,1733232564602,-500.0,0.00030082,7]
[344031972,1733232564629,-500.0,0.00030082,7]
[344031973,1733232564651,-505.15,0.00030082,7]
[344031974,1733232564672,-223.0,0.00030205,2]
[344031975,1733232564696,-152.78,0.000303,31]
[344031976,1733232564719,-227.79217145,0.00030335,2]
[344031977,1733232564744,-264.3,0.00030355,7]
[344031978,1733232564767,-500.0,0.00030355,7]
[344031979,1733232564788,-500.0,0.00030356,7]
[344031980,1733232564810,-500.0,0.00030356,7]
[344031981,1733232564833,-505.15,0.00030356,7]
[344031982,1733232564855,-227.79217145,0.00030625,2]
[344031983,1733232564882,-500.0,0.00030629,7]
[344031984,1733232564903,-500.0,0.0003063,7]
[344031985,1733232564926,-500.0,0.0003063,7]
[344031986,1733232564950,-505.15,0.0003063,7]
[344031987,1733232564972,-150.0,0.000307,2]
[344031988,1733232564993,-583.22,0.0003079,3]
[344031989,1733232565015,-8006.81588736,0.000308,10]
[344031990,1733232571158,-9567.59663443,0.000308,10]
[344031991,1733232571181,-500.0,0.00030903,7]
[344031992,1733232571203,-500.0,0.00030904,7]
[344031993,1733232571225,-500.0,0.00030904,7]
[344031994,1733232571248,-505.15,0.00030904,7]
[344031995,1733232571269,-227.79217145,0.00030915,2]
[344031996,1733232571290,-6978.07383135,0.00030915,2]